bitfinex/quotes_SOLUSD_20220306
["timestamp","ask_amount","ask_price","bid_price","bid_amount"]
[1646599291912,13.39487996,85.719,85.671,23.3459]
[1646599292112,15.40240251,85.718,85.652,24.1228]
[1646599292312,3.18452255,85.715,85.653,22.7536]
[1646599292512,9.01952255,85.714,85.653,22.7536]
[1646599292713,3.18452255,85.711,85.653,22.7536]
[1646599292913,9.01952255,85.71,85.653,22.7536]
[1646599293114,26.53672255,85.71,85.653,22.7536]
[1646599293319,9.56940251,85.709,85.653,22.7536]
[1646599293520,5.835,85.708,85.653,22.7536]
[1646599293716,117.3,85.707,85.624,23.3313]
[1646599293915,5.836,85.706,85.625,24.1252]
[1646599294415,117.3,85.699,85.608,60.79727863]
[1646599294614,3.18452255,85.687,85.608,60.79727863]
[1646599294814,5.837,85.686,85.608,60.79727863]
[1646599295014,6.38487996,85.685,85.608,60.79727863]
[1646599295316,5.837,85.684,85.608,60.79727863]
[1646599295513,6.38487996,85.683,85.608,60.79727863]
[1646599295715,5.837,85.682,85.608,60.79727863]
[1646599296015,17.5257,85.68,85.61,17.5252]
[1646599296216,5.838,85.679,85.61,17.5252]
[1646599296416,123.138,85.683,85.61,17.5252]
[1646599296620,123.138,85.683,85.607,24.1252]
[1646599296621,9.12176378,85.682,85.607,24.1252]
[1646599296819,117.3,85.669,85.591,27.59476335]
[1646599297020,126.83,85.669,85.591,27.59476335]
[1646599297219,117.3,85.667,85.58,16.87]
[1646599297417,117.3,85.667,85.586,76.40113284]
[1646599297619,117.3,85.665,85.586,76.40113284]
[1646599298020,117.3,85.663,85.586,76.40113284]
[1646599298222,17.5316,85.66,85.59,17.5306]
[1646599298421,2.73394177,85.664,85.59,17.5306]
[1646599298619,5.839,85.663,85.591,27.59476335]
[1646599299619,17.527,85.66,85.6,17.5283]
[1646599299820,5.839,85.659,85.6,17.5283]
[1646599300321,20.20214177,85.664,85.6,17.5283]
[1646599300322,5.839,85.663,85.6,17.5283]
[1646599301020,5.838,85.663,85.6,17.5283]
[1646599301222,17.529,85.65,85.6,17.5283]
[1646599301420,5.839,85.649,85.6,17.5283]
[1646599308225,5.839,85.659,85.6,17.5283]
[1646599310529,17.529,85.65,85.587,5.0]
[1646599310829,5.839,85.649,85.587,5.0]
[1646599311029,123.139,85.657,85.587,5.0]
[1646599311229,2.72802891,85.65,85.587,5.0]
[1646599311429,5.839,85.649,85.587,5.0]
[1646599311831,2.72802891,85.648,85.587,5.0]
[1646599312034,5.839,85.647,85.587,5.0]
[1646599312230,17.5339,85.64,85.587,5.0]
[1646599312432,5.84,85.639,85.587,5.0]
[1646599313231,17.5351,85.63,85.587,5.0]
[1646599313431,5.84,85.629,85.587,5.0]
[1646599313648,5.84,85.639,85.587,5.0]
[1646599315250,17.5358,85.62,85.587,5.0]
[1646599315451,5.84,85.619,85.587,5.0]
[1646599316453,5.84,85.629,85.587,5.0]
[1646599317053,5.84,85.639,85.587,5.0]
[1646599317257,17.535,85.62,85.587,5.0]
[1646599318255,17.5337,85.63,85.587,5.0]
[1646599318459,5.84,85.629,85.587,5.0]
[1646599319455,17.5337,85.63,85.587,5.0]
[1646599321057,5.84,85.639,85.587,5.0]
[1646599321258,5.84,85.639,85.59,17.5303]
[1646599321459,5.84,85.639,85.59,24.2803]
[1646599321960,5.84,85.655,85.59,24.2803]
[1646599322158,5.839,85.657,85.591,22.6719]
[1646599322363,6.38985307,85.654,85.601,48.75355418]
[1646599322558,5.839,85.653,85.601,48.75355418]
[1646599322959,5.839,85.659,85.601,48.75355418]
[1646599323158,6.38949333,85.658,85.601,48.75355418]
[1646599323359,5.839,85.657,85.601,48.75355418]
[1646599323558,6.38949333,85.656,85.601,48.75355418]
[1646599323757,5.839,85.655,85.601,48.75355418]
[1646599324164,3.18452255,85.665,85.61,17.5254]
[1646599324360,3.18452255,85.675,85.61,25.3254]
[1646599324759,5.838,85.674,85.61,25.3254]
[1646599325160,6.38860473,85.673,85.61,25.3254]
[1646599325362,5.838,85.672,85.61,25.3254]
[1646599325560,6.38860473,85.671,85.61,25.3254]
[1646599325761,5.838,85.67,85.61,25.3254]
[1646599326160,23.3628,85.67,85.61,25.3254]
[1646599326360,6.38860473,85.669,85.61,25.3254]
[1646599326560,5.838,85.668,85.61,25.3254]
[1646599326960,5.838,85.674,85.61,25.3254]
[1646599327161,6.38844471,85.673,85.61,25.3254]
[1646599327363,5.838,85.672,85.61,25.3254]
[1646599327761,6.38844471,85.671,85.61,25.3254]
[1646599327961,5.838,85.67,85.61,25.3254]
[1646599328262,6.38844471,85.669,85.61,17.5254]
[1646599328461,5.838,85.668,85.61,17.5254]
[1646599328961,6.38844471,85.667,85.61,17.5254]
[1646599329162,5.838,85.673,85.61,17.5254]
[1646599329365,6.38850317,85.672,85.61,17.5254]
[1646599329563,6.38850317,85.673,85.61,17.5254]
[1646599329763,5.838,85.672,85.61,17.5254]
[1646599330065,6.38850317,85.671,85.61,17.5254]
[1646599330263,5.838,85.67,85.61,17.5254]
[1646599330465,6.38850317,85.669,85.61,17.5254]
[1646599330664,5.838,85.668,85.61,17.5254]
[1646599330865,9.02252255,85.676,85.61,17.5254]
[1646599331164,6.38836278,85.675,85.61,17.5254]
[1646599331464,5.838,85.674,85.61,17.5254]
[1646599331864,6.38836278,85.673,85.61,17.5254]
[1646599332064,5.838,85.672,85.61,17.5254]
[1646599332265,6.38836278,85.671,85.61,17.5254]
[1646599332464,6.38836278,85.675,85.61,17.5254]
[1646599332668,6.38836278,85.676,85.61,17.5254]
[1646599332866,5.838,85.675,85.61,17.5254]
[1646599333069,6.38836278,85.674,85.61,17.5254]
[1646599333467,6.38836278,85.676,85.61,17.5254]
[1646599333667,5.838,85.675,85.61,17.5254]
[1646599333866,6.38836278,85.674,85.61,17.5254]
[1646599334067,5.838,85.673,85.61,17.5254]
[1646599334267,6.38836278,85.672,85.61,17.5254]
[1646599334668,17.525,85.67,85.61,17.5254]
[1646599335368,5.838,85.669,85.61,17.5254]
[1646599338774,5.838,85.678,85.61,17.5254]
[1646599339273,6.3883574,85.677,85.61,17.5254]
[1646599339473,5.838,85.676,85.61,17.5254]
[1646599339796,6.3883574,85.675,85.61,17.5254]
[1646599339973,5.838,85.674,85.61,17.5254]
[1646599340175,17.5251,85.67,85.61,17.5254]
[1646599340378,5.838,85.669,85.61,17.5254]
[1646599341976,17.5251,85.67,85.61,17.5254]
[1646599343079,4.096,85.669,85.61,17.5254]
[1646599343779,4.097,85.678,85.61,17.5254]
[1646599343981,6.38840832,85.677,85.61,17.5254]
[1646599344184,4.099,85.676,85.61,17.5254]
[1646599344583,6.38840832,85.675,85.61,17.5254]
[1646599344783,3.6,85.674,85.611,4.999]
[1646599344987,6.38840832,85.673,85.611,4.999]
[1646599345188,17.5254,85.67,85.611,4.999]
[1646599345990,117.3,85.669,85.611,4.999]
[1646599346188,17.5298,85.66,85.611,4.999]
[1646599346388,17.5298,85.66,85.602,22.6719]
[1646599346590,0.28944612,85.659,85.602,22.6719]
[1646599346891,2.72802891,85.658,85.602,22.6719]
[1646599347307,17.5297,85.65,85.602,22.6719]
[1646599347506,25.9097,85.65,85.602,22.6719]
[1646599349207,6.3897077,85.649,85.602,22.6719]
[1646599354914,17.5314,85.64,85.602,22.6719]
[1646599356015,3.18452255,85.653,85.602,22.6719]
[1646599356416,9.57400905,85.656,85.602,22.6719]
[1646599356617,3.18452255,85.657,85.602,22.6719]
[1646599356816,3.18452255,85.658,85.602,22.6719]
[1646599357017,3.18452255,85.659,85.61,17.5256]
[1646599357217,3.18452255,85.659,85.602,22.6719]
[1646599357418,3.18452255,85.658,85.602,22.6719]
[1646599357817,3.18452255,85.657,85.602,22.6719]
[1646599359117,17.529,85.65,85.602,22.6719]
[1646599360320,3.18452255,85.657,85.602,22.6719]
[1646599360520,3.18452255,85.658,85.602,22.6719]
[1646599361620,17.5289,85.65,85.602,22.6719]
[1646599361821,6.38940104,85.649,85.602,22.6719]
[1646599372935,3.18452255,85.648,85.602,22.6719]
[1646599373556,6.38940104,85.648,85.602,22.6719]
[1646599373756,17.5276,85.66,85.602,22.6719]
[1646599373757,3.18452255,85.65,85.602,22.6719]
[1646599374557,3.18452255,85.65,85.603,5.839]
[1646599376160,3.18452255,85.648,85.603,5.839]
[1646599377165,3.18452255,85.648,85.602,22.6719]
[1646599378270,6.38940104,85.659,85.602,22.6719]
[1646599378271,3.18452255,85.647,85.602,22.6719]
[1646599378564,3.18452255,85.648,85.602,22.6719]
[1646599380166,6.38940104,85.647,85.602,22.6719]
[1646599380366,3.18452255,85.651,85.602,22.6719]
[1646599380565,3.18452255,85.651,85.603,5.839]
[1646599380769,6.38940104,85.65,85.603,5.839]
[1646599380968,3.18452255,85.652,85.603,5.839]
[1646599381470,3.18452255,85.653,85.602,22.6719]
[1646599382469,3.18452255,85.654,85.603,5.839]
[1646599382668,6.38940104,85.652,85.603,5.839]
[1646599382868,3.18452255,85.654,85.603,5.839]
[1646599383268,3.18452255,85.655,85.603,5.839]
[1646599385170,3.18452255,85.656,85.603,5.839]
[1646599385370,3.18452255,85.655,85.603,5.839]
[1646599385971,1.68452255,85.655,85.603,5.839]
[1646599386172,6.38940104,85.659,85.603,5.839]
[1646599387077,6.38940104,85.659,85.61,17.525]
[1646599387274,6.38940104,85.673,85.62,16.87]
[1646599387474,6.38940104,85.673,85.622,51.40358129]
[1646599387673,6.38940104,85.673,85.623,5.837]
[1646599388273,24.9031,85.701,85.623,5.837]
[1646599388474,17.5218,85.69,85.63,17.5212]
[1646599388775,24.9031,85.689,85.631,22.5699]
[1646599389979,17.5227,85.68,85.631,22.5699]
[1646599390180,17.3357,85.682,85.631,22.5699]
[1646599391076,6.38797226,85.673,85.631,22.5699]
[1646599392679,6.38797226,85.673,85.613,5.837]
[1646599392882,15.74797226,85.673,85.614,23.8333]
[1646599393079,1.59212244,85.645,85.614,23.8333]
[1646599393480,1.59212244,85.644,85.614,23.8333]
[1646599393880,1.59212244,85.643,85.614,23.8333]
[1646599394080,1.59212244,85.644,85.614,23.8333]
[1646599394683,1.34025654,85.644,85.614,23.8333]
[1646599395481,1.34025654,85.644,85.615,5.839]
[1646599396681,23.2536,85.669,85.615,5.839]
[1646599396882,6.38871075,85.668,85.615,5.839]
[1646599398682,6.38871075,85.668,85.614,23.8333]
[1646599399082,17.5271,85.66,85.614,23.8333]
[1646599404187,4.68824254,85.701,85.62,16.87]
[1646599404387,24.1555,85.7,85.62,16.87]
[1646599404589,25.43011611,85.7,85.621,25.20224335]
[1646599404990,1.27461611,85.699,85.621,25.20224335]
[1646599405288,1.27461611,85.699,85.64,17.5203]
[1646599405486,1.27461611,85.699,85.641,24.8007]
[1646599407087,17.5208,85.69,85.641,24.8007]
[1646599407593,3.598,85.689,85.641,24.8007]
[1646599410789,17.5231,85.68,85.641,24.8007]
[1646599423323,3.6,85.679,85.641,24.8007]
[1646599423522,17.5261,85.67,85.641,24.8007]
[1646599426726,3.598,85.68,85.641,24.8007]
[1646599426924,21.1214,85.68,85.641,24.8007]
[1646599433329,21.1214,85.68,85.621,5.836]
[1646599433532,23.5837,85.679,85.613,29.951]
[1646599433831,17.5258,85.67,85.613,29.951]
[1646599435230,17.5258,85.67,85.62,17.5241]
[1646599435431,17.5258,85.67,85.621,5.838]
[1646599436332,17.5258,85.67,85.613,24.114]
[1646599436333,3.597,85.669,85.614,5.838]
[1646599436731,22.6626,85.668,85.614,5.838]
[1646599436931,3.599,85.667,85.614,5.838]
[1646599437333,22.6626,85.689,85.614,5.838]
[1646599437535,3.604,85.688,85.62,106.1962212]
[1646599437734,22.6626,85.689,85.63,16.87]
[1646599437935,4.68824254,85.707,85.631,23.0126]
[1646599438136,42.3623,85.71,85.631,23.0126]
[1646599439138,17.5199,85.7,85.631,23.0126]
[1646599439337,3.598,85.699,85.631,23.0126]
[1646599439738,3.583,85.706,85.631,23.0126]
[1646599440138,17.5221,85.69,85.631,23.0126]
[1646599440338,3.569,85.689,85.631,23.0126]
[1646599441041,28.1074,85.689,85.631,23.0126]
[1646599441540,24.5384,85.689,85.631,23.0126]
[1646599442440,17.5229,85.68,85.631,23.0126]
[1646599446144,17.5305,85.66,85.614,5.838]
[1646599446344,26.2005,85.66,85.614,5.838]
[1646599447445,117.3,85.659,85.584,23.0624]
[1646599447646,17.5317,85.64,85.584,23.0624]
[1646599447847,24.9617,85.64,85.584,23.0624]
[1646599448447,3.598,85.639,85.584,23.0624]
[1646599448847,17.5339,85.63,85.584,23.0624]
[1646599449252,3.465,85.629,85.584,23.0624]
[1646599449549,3.42,85.638,85.584,23.0624]
[1646599449746,3.42,85.638,85.585,61.80949351]
[1646599449948,3.375,85.657,85.585,61.80949351]
[1646599450350,383.76997933,85.646,85.585,61.80949351]
[1646599450549,3.286,85.645,85.585,61.80949351]
[1646599450747,17.5314,85.64,85.569,23.0736]
[1646599451148,117.62618314,85.639,85.569,23.0736]
[1646599451752,0.33354177,85.637,85.569,23.0736]
[1646599452150,17.5385,85.62,85.569,23.0736]
[1646599452350,24.8285,85.62,85.569,23.0736]
[1646599457553,17.5385,85.62,85.569,23.0736]
[1646599457753,17.5385,85.62,85.57,17.5344]
[1646599458359,17.5336,85.63,85.57,17.5344]
[1646599458558,3.597,85.629,85.57,17.5344]
[1646599458756,3.597,85.648,85.57,17.5344]
[1646599458957,3.597,85.648,85.58,16.87]
[1646599459159,3.597,85.648,85.59,17.5297]
[1646599459357,3.597,85.658,85.591,57.20750085]
[1646599459558,17.5296,85.65,85.591,57.20750085]
[1646599459962,3.597,85.658,85.591,57.20750085]
[1646599460157,3.597,85.658,85.6,17.5297]
[1646599461258,3.597,85.645,85.6,34.3997]
[1646599465466,17.7556,85.66,85.6,34.3997]
[1646599469070,3.598,85.645,85.6,34.3997]
[1646599469671,17.7556,85.66,85.6,34.3997]
[1646599473093,3.599,85.659,85.6,34.3997]
[1646599473796,3.599,85.645,85.6,34.3997]
[1646599476199,3.599,85.659,85.601,117.3]
[1646599476500,321.86997933,85.646,85.611,117.3]
[1646599476699,3.598,85.686,85.62,16.87]
[1646599476901,3.598,85.686,85.622,50.50431837]
[1646599477099,3.596,85.697,85.622,50.50431837]
[1646599477501,3.594,85.702,85.64,17.5169]
[1646599477699,3.594,85.702,85.641,23.3213]
[1646599478102,507.33780187,85.702,85.641,23.3213]
[1646599479100,17.5189,85.7,85.641,23.3213]
[1646599479300,3.592,85.699,85.641,23.3213]
[1646599479901,3.59,85.701,85.641,23.3213]
[1646599480902,17.5211,85.69,85.641,23.3213]
[1646599481104,3.588,85.689,85.641,23.3213]
[1646599481404,3.588,85.689,85.62,16.87]
[1646599481405,12.108,85.689,85.62,16.87]
[1646599481603,117.3,85.688,85.621,23.2813]
[1646599481803,3.586,85.687,85.621,23.2813]
[1646599482204,8.52,85.689,85.621,23.2813]
[1646599482205,17.5229,85.68,85.621,23.2813]
[1646599482404,3.582,85.679,85.621,23.2813]
[1646599482606,3.18063457,85.687,85.621,23.2813]
[1646599482804,3.578,85.686,85.621,23.2813]
[1646599483606,117.3,85.685,85.621,23.2813]
[1646599483807,17.5256,85.67,85.621,23.2813]
[1646599484007,3.573,85.669,85.621,23.2813]
[1646599486108,3.573,85.669,85.631,59.58828131]
[1646599486307,3.571,85.687,85.631,59.58828131]
[1646599486610,3.571,85.687,85.632,23.7516]
[1646599486809,3.18063457,85.691,85.632,23.7516]
[1646599487008,3.567,85.69,85.632,23.7516]
[1646599487208,3.565,85.693,85.632,23.7516]
[1646599487609,6.74363457,85.7,85.632,23.7516]
[1646599488008,3.563,85.7,85.632,23.7516]
[1646599488211,3.18063457,85.698,85.64,17.5194]
[1646599488408,21.0817,85.7,85.64,34.3894]
[1646599489010,6.38658455,85.699,85.64,34.3894]
[1646599489708,3.597,85.698,85.64,34.3894]
[1646599489912,6.38658455,85.697,85.64,34.3894]
[1646599490109,3.63,85.696,85.64,34.3894]
[1646599491112,503.74380187,85.702,85.651,117.3]
[1646599491310,17.9103,85.765,85.651,117.3]
[1646599491311,3.18063457,85.718,85.66,227.69]
[1646599491510,4.68824254,85.743,85.661,59.11908692]
[1646599491511,3.18063457,85.726,85.661,59.11908692]
[1646599491711,3.18063457,85.726,85.662,22.8184]
[1646599491910,3.18063457,85.726,85.662,40.08686729]
[1646599492111,6.38500199,85.741,85.662,40.08686729]
[1646599492112,3.18063457,85.731,85.663,47.03912722]
[1646599492312,3.18063457,85.733,85.663,76.01894399]
[1646599492510,3.6,85.732,85.664,47.03912722]
[1646599492710,3.6,85.732,85.68,17.5072]
[1646599492911,3.601,85.733,85.69,16.87]
[1646599493110,3.602,85.752,85.69,16.87]
[1646599493312,6.38334173,85.751,85.69,16.87]
[1646599493512,3.603,85.75,85.69,16.87]
[1646599493711,6.38334173,85.749,85.69,16.87]
[1646599493911,3.604,85.748,85.69,16.87]
[1646599494112,3.604,85.748,85.7,17.5089]
[1646599494511,3.605,85.758,85.7,17.5089]
[1646599494812,6.38334631,85.757,85.7,17.5089]
[1646599495011,3.597,85.756,85.7,17.5089]
[1646599495212,6.38334631,85.755,85.7,17.5089]
[1646599495411,120.889,85.754,85.7,17.5089]
[1646599495611,123.68334631,85.753,85.7,17.5089]
[1646599495910,17.5096,85.75,85.7,17.5089]
[1646599496113,3.573,85.749,85.7,17.5089]
[1646599498112,17.5096,85.75,85.7,17.5089]
[1646599498815,17.5096,85.75,85.69,17.5094]
[1646599499013,17.5096,85.75,85.691,5.832]
[1646599500213,117.3,85.749,85.691,5.832]
[1646599500414,17.5118,85.74,85.691,5.832]
[1646599501121,17.5118,85.74,85.69,16.87]
[1646599501318,117.3,85.739,85.69,16.87]
[1646599501617,17.5143,85.73,85.671,5.833]
[1646599501815,117.3,85.729,85.671,5.833]
[1646599502114,117.3,85.729,85.64,269.1988]
[1646599502115,117.3,85.729,85.644,28.21065993]
[1646599502315,117.3,85.729,85.615,17.0986]
[1646599502515,0.33378898,85.728,85.633,86.49416836]
[1646599502715,17.5164,85.72,85.653,5.834]
[1646599502915,117.3,85.717,85.653,5.834]
[1646599503115,0.38111631,85.716,85.653,5.834]
[1646599503315,0.38111631,85.716,85.634,5.835]
[1646599503918,0.38111631,85.716,85.653,5.835]
[1646599504115,17.5195,85.7,85.653,5.835]
[1646599505016,3.598,85.699,85.64,17.5199]
[1646599509622,3.598,85.699,85.634,5.835]
[1646599509623,17.5213,85.69,85.634,5.835]
[1646599509824,3.541,85.689,85.634,5.835]
[1646599510124,0.34823705,85.688,85.634,5.835]
[1646599510323,3.484,85.687,85.634,5.835]
[1646599510823,3.427,85.702,85.619,22.5928]
[1646599511024,0.35412219,85.701,85.619,22.5928]
[1646599511224,3.08346672,85.701,85.619,22.5928]
[1646599511423,17.5262,85.68,85.62,17.525]
[1646599511827,3.541,85.679,85.62,17.525]
[1646599514445,3.541,85.679,85.621,24.2961]
[1646599514646,3.541,85.679,85.63,17.5231]
[1646599517748,17.5262,85.68,85.63,17.5231]
[1646599520455,3.654,85.679,85.63,17.5231]
[1646599522262,3.654,85.679,85.631,24.6555]
[1646599522463,3.654,85.679,85.641,57.91593368]
[1646599523362,3.654,85.679,85.65,17.518]
[1646599524064,3.654,85.679,85.641,57.91593368]
[1646599524465,1.58675018,85.687,85.641,57.91593368]
[1646599526564,1.58675018,85.687,85.65,17.5193]
[1646599526766,1.58675018,85.693,85.65,17.5193]
[1646599526966,1.58675018,85.697,85.65,17.5193]
[1646599527364,1.58675018,85.693,85.65,17.5193]
[1646599527567,1.58675018,85.694,85.65,17.5193]
[1646599527764,1.58675018,85.694,85.65,34.3893]
[1646599528264,1.58675018,85.695,85.65,34.3893]
[1646599528665,1.58675018,85.694,85.65,34.3893]
[1646599529068,1.58675018,85.693,85.65,34.3893]
[1646599529266,1.58675018,85.686,85.65,34.3893]
[1646599529570,1.58675018,85.689,85.65,34.3893]
[1646599529767,1.58675018,85.689,85.65,40.3693]
[1646599530067,1.58675018,85.69,85.65,40.3693]
[1646599530766,6.38551169,85.715,85.65,40.3693]
[1646599530767,1.58675018,85.691,85.65,40.3693]
[1646599530966,1.58675018,85.691,85.65,34.3893]
[1646599532271,1.58675018,85.692,85.65,34.3893]
[1646599532472,1.58675018,85.693,85.65,40.6893]
[1646599532667,1.58675018,85.699,85.65,40.6893]
[1646599532868,1.58675018,85.7,85.65,40.6893]
[1646599533669,1.58675018,85.7,85.65,34.3893]
[1646599534775,1.58675018,85.701,85.65,34.3893]
[1646599536675,1.58675018,85.702,85.65,34.3893]
[1646599536875,1.58675018,85.705,85.65,34.3893]
[1646599537277,1.58675018,85.703,85.65,34.3893]
[1646599537476,1.58675018,85.705,85.65,34.3893]
[1646599538376,1.58675018,85.703,85.65,34.3893]
[1646599538593,1.58675018,85.702,85.65,34.3893]
[1646599538793,1.58675018,85.703,85.65,34.3893]
[1646599540996,1.58675018,85.7,85.65,34.3893]
[1646599541797,1.58675018,85.697,85.65,34.3893]
[1646599542197,1.58675018,85.696,85.65,34.3893]
[1646599542797,1.58675018,85.697,85.65,34.3893]
[1646599544299,1.58675018,85.696,85.65,34.3893]
[1646599546200,1.58675018,85.695,85.65,34.3893]
[1646599546602,1.58675018,85.694,85.65,34.3893]
[1646599546800,1.58675018,85.693,85.65,34.3893]
[1646599547900,1.58675018,85.694,85.65,34.3893]
[1646599548302,1.58675018,85.695,85.65,34.3893]
[1646599548502,1.58675018,85.696,85.65,34.3893]
[1646599548701,24.4433,85.719,85.65,34.3893]
[1646599548702,1.58675018,85.694,85.65,34.3893]
[1646599549302,1.58675018,85.693,85.65,34.3893]
[1646599549503,1.58675018,85.694,85.65,34.3893]
[1646599549902,1.58675018,85.695,85.65,34.3893]
[1646599550703,1.58675018,85.696,85.65,34.3893]
[1646599550902,1.58675018,85.694,85.65,34.3893]
[1646599551104,1.58675018,85.695,85.65,34.3893]
[1646599551506,1.58675018,85.7,85.65,34.3893]
[1646599552907,1.58675018,85.699,85.65,34.3893]
[1646599553705,1.58675018,85.698,85.65,34.3893]
[1646599554504,1.58675018,85.699,85.65,34.3893]
[1646599554706,1.58675018,85.698,85.65,34.3893]
[1646599554905,1.58675018,85.696,85.65,34.3893]
[1646599555511,1.58675018,85.697,85.65,34.3893]
[1646599555907,1.58675018,85.696,85.65,34.3893]
[1646599556107,1.58675018,85.697,85.65,34.3893]
[1646599556709,1.58675018,85.696,85.65,34.3893]
[1646599557110,1.58675018,85.695,85.65,34.3893]
[1646599557910,1.58675018,85.696,85.65,34.3893]
[1646599558509,1.58675018,85.692,85.65,34.3893]
[1646599558711,1.58675018,85.691,85.65,34.3893]
[1646599559612,1.58675018,85.69,85.65,34.3893]
[1646599560813,1.58675018,85.689,85.65,34.3893]
[1646599561013,1.58675018,85.69,85.65,34.3893]
[1646599561414,1.58675018,85.682,85.65,34.3893]
[1646599561615,1.58675018,85.677,85.65,16.87]
[1646599561815,1.58675018,85.678,85.65,16.87]
[1646599562617,1.58675018,85.678,85.65,34.389]
[1646599562917,1.58675018,85.677,85.65,34.389]
[1646599563717,1.58675018,85.676,85.65,34.389]
[1646599564718,1.58675018,85.677,85.65,34.389]
[1646599564918,1.58675018,85.676,85.65,34.389]
[1646599565918,1.58675018,85.678,85.65,34.389]
[1646599566117,1.58675018,85.677,85.65,34.389]
[1646599567720,1.58675018,85.678,85.65,34.389]
[1646599568618,1.58675018,85.682,85.65,34.389]
[1646599569719,1.58675018,85.683,85.65,34.389]
[1646599569919,1.58675018,85.682,85.65,34.389]
[1646599572722,1.58675018,85.698,85.651,31.95581677]
[1646599572923,1.58675018,85.699,85.66,17.5115]
[1646599573126,1.58675018,85.701,85.661,57.18458833]
[1646599573326,1.58675018,85.702,85.662,22.805]
[1646599573626,1.58675018,85.701,85.662,22.805]
[1646599574424,1.58675018,85.702,85.662,22.805]
[1646599574825,1.58675018,85.699,85.67,17.5133]
[1646599575126,1.58675018,85.699,85.67,34.3833]
[1646599575326,1.58675018,85.698,85.67,34.3833]
[1646599575927,1.58675018,85.699,85.67,34.3833]
[1646599576325,1.58675018,85.698,85.67,34.3833]
[1646599576625,1.58675018,85.699,85.67,34.3833]
[1646599577226,1.58675018,85.702,85.67,34.3833]
[1646599577427,1.58675018,85.705,85.67,34.3833]
[1646599577628,1.58675018,85.704,85.67,34.3833]
[1646599577928,1.58675018,85.702,85.67,34.3833]
[1646599578127,1.58675018,85.703,85.67,34.3833]
[1646599578328,1.58675018,85.702,85.67,34.3833]
[1646599578531,1.58675018,85.7,85.67,34.3833]
[1646599579932,1.58675018,85.701,85.67,34.3833]
[1646599580730,1.58675018,85.707,85.671,5.835]
[1646599580929,1.58675018,85.708,85.68,17.5107]
[1646599581132,1.58675018,85.708,85.68,34.3807]
[1646599581331,1.58675018,85.707,85.68,34.3807]
[1646599581532,1.58675018,85.708,85.68,34.3807]
[1646599581934,1.58675018,85.711,85.68,34.3807]
[1646599582130,1.58675018,85.712,85.68,34.3807]
[1646599582630,1.58675018,85.716,85.68,34.3807]
[1646599582931,1.58675018,85.718,85.69,17.5103]
[1646599583131,1.58675018,85.718,85.69,34.3803]
[1646599583741,1.58675018,85.719,85.69,34.3803]
[1646599584133,1.98875018,85.738,85.69,34.3803]
[1646599584334,6.38391387,85.737,85.69,34.3803]
[1646599584738,1.98875018,85.738,85.69,34.3803]
[1646599584935,6.38392571,85.737,85.69,34.3803]
[1646599585537,17.5127,85.73,85.69,16.87]
[1646599585935,17.5127,85.73,85.683,24.4394]
[1646599585936,25.8727,85.73,85.654,5.833]
[1646599586136,30.6919839,85.729,85.655,24.0449]
[1646599586536,6.3847839,85.728,85.655,24.0449]
[1646599587139,17.5183,85.71,85.66,17.5172]
[1646599588459,17.5149,85.72,85.66,17.5172]
[1646599588660,2.184,85.719,85.66,17.5172]
[1646599588962,17.5149,85.72,85.67,17.515]
[1646599589259,23.3571,85.719,85.671,5.833]
[1646599589461,23.3571,85.719,85.67,17.515]
[1646599589660,23.3571,85.719,85.671,5.833]